fUST/lending_fUST_20250330
["ID","MTS","AMOUNT","RATE_DAILY","PERIOD"]
[356851300,1743336632544,-211.40455739,0.00013273,2]
[356851302,1743336632554,-156.17976718,0.00013273,2]
[356851304,1743336632563,-500.0,0.00013273,2]
[356851306,1743336632572,-500.0,0.00013273,2]
[356851308,1743336632581,-500.0,0.00013273,2]
[356851310,1743336632590,-500.0,0.00013273,2]
[356851312,1743336632599,-500.0,0.00013273,2]
[356851314,1743336632609,-214.64672942,0.00013273,2]
[356851316,1743336632618,-500.0,0.00013273,2]
[356851318,1743336632627,-500.0,0.00013273,2]
[356851320,1743336632637,-156.47415,0.00013273,2]
[356851322,1743336632646,-151.0,0.00013273,2]
[356851324,1743336632656,-151.0,0.000133,2]
[356851326,1743336632665,-610.45155778,0.00013414,2]
[356851328,1743336632674,-502.62569481,0.00013571,2]
[356851330,1743336632683,-207.42463239,0.00013698,2]
[356851332,1743336632692,-160.0,0.00013698,2]
[356851334,1743336632702,-160.0,0.00013698,2]
[356851336,1743336632711,-934.887317,0.00013699,2]
[356851338,1743336632721,-21322.0615697,0.00013699,2]
[356851340,1743336632733,-173.156209,0.00013699,2]
[356851342,1743336632742,-151.0,0.00013699,2]
[356851344,1743336632751,-151.0,0.00013699,2]
[356851346,1743336632761,-151.0,0.00013699,2]
[356851348,1743336632771,-151.0,0.00013699,2]
[356851350,1743336632780,-151.0,0.00013699,2]
[356851352,1743336632789,-151.0,0.00013699,2]
[356851354,1743336632798,-244.848,0.00013699,2]
[356851356,1743336632808,-151.0,0.00013699,2]
[356851358,1743336632817,-151.0,0.00013699,2]
[356851360,1743336632826,-152.734142,0.00013699,2]
[356851362,1743336632835,-161.737839,0.00013699,2]
[356851364,1743336632844,-161.737839,0.00013699,2]
[356851366,1743336632853,-161.737839,0.00013699,2]
[356851368,1743336632862,-161.737839,0.00013699,2]
[356851370,1743336632871,-161.737839,0.00013699,2]
[356851372,1743336632881,-161.737839,0.00013699,2]
[356851374,1743336632890,-161.737839,0.00013699,2]
[356851376,1743336632899,-161.737839,0.00013699,2]
[356851378,1743336632909,-161.737839,0.00013699,2]
[356851380,1743336632918,-161.737839,0.00013699,2]
[356851382,1743336632928,-161.737839,0.00013699,2]
[356851384,1743336632937,-151.0,0.00013699,2]
[356851386,1743336632946,-161.737839,0.00013699,2]
[356851388,1743336632955,-161.737839,0.00013699,2]
[356851389,1743336632964,-161.737839,0.00013699,2]
[356851390,1743336632974,-161.737839,0.00013699,2]
[356851391,1743336632983,-161.737839,0.00013699,2]
[356851392,1743336632992,-161.737839,0.00013699,2]
[356851393,1743336633001,-161.737839,0.00013699,2]
[356851394,1743336633010,-161.737839,0.00013699,2]
[356851395,1743336633019,-161.737839,0.00013699,2]
[356851396,1743336633028,-151.0,0.00013699,2]
[356851397,1743336633038,-151.0,0.00013699,2]
[356851398,1743336633047,-151.0,0.00013699,2]
[356851399,1743336633057,-151.0,0.00013699,2]
[356851400,1743336633067,-151.0,0.00013699,2]
[356851402,1743336633076,-151.0,0.00013699,2]
[356851404,1743336633085,-151.0,0.00013699,2]
[356851406,1743336633095,-151.0,0.00013699,2]
[356851408,1743336633104,-242.44486,0.00013699,2]
[356851410,1743336633112,-151.0,0.00013699,2]
[356851412,1743336633121,-151.0,0.00013699,2]
[356851414,1743336633130,-151.0,0.00013699,2]
[356851416,1743336633139,-151.0,0.00013699,2]
[356851417,1743336633148,-151.0,0.00013699,2]
[356851419,1743336633158,-190.815402,0.00013699,2]
[356851421,1743336633167,-151.0,0.00013699,2]
[356851423,1743336633176,-151.0,0.00013699,2]
[356851425,1743336633186,-500.0,0.00013699,2]
[356851427,1743336633195,-3138.3632931,0.00013699,2]
[356851430,1743336633204,-538.96921702,0.00013699,2]
[356851432,1743336633214,-3138.3632931,0.00013699,2]
[356851434,1743336633224,-3138.3632931,0.00013699,2]
[356851436,1743336633233,-500.0,0.00013699,2]
[356851438,1743336633242,-3138.3632931,0.00013699,2]
[356851440,1743336633252,-500.0,0.00013699,2]
[356851441,1743336633261,-3138.3632931,0.00013699,2]
[356851444,1743336633271,-3138.3632931,0.00013699,2]
[356851445,1743336633281,-3138.3632931,0.00013699,2]
[356851448,1743336633290,-3138.3632931,0.00013699,2]
[356851449,1743336633299,-3138.3632931,0.00013699,2]
[356851451,1743336633309,-3138.3632931,0.00013699,2]
[356851453,1743336633318,-3138.3632931,0.00013699,2]
[356851456,1743336633328,-3138.3632931,0.00013699,2]
[356851457,1743336633337,-3138.3632931,0.00013699,2]
[356851459,1743336633347,-3138.3632931,0.00013699,2]
[356851461,1743336633358,-3138.3632931,0.00013699,2]
[356851462,1743336633368,-151.0,0.00013699,2]
[356851463,1743336633377,-3138.3632931,0.00013699,2]
[356851464,1743336633386,-3138.3632931,0.00013699,2]
[356851465,1743336633395,-3138.3632931,0.00013699,2]
[356851466,1743336633405,-3138.3632931,0.00013699,2]
[356851467,1743336633415,-3138.3632931,0.00013699,2]
[356851468,1743336633424,-3138.3632931,0.00013699,2]
[356851469,1743336633433,-3138.3632931,0.00013699,2]
[356851470,1743336633443,-3138.3632931,0.00013699,2]
[356851471,1743336633452,-3138.3632931,0.00013699,2]
[356851472,1743336633462,-3138.3632931,0.00013699,2]
[356851473,1743336633472,-3138.3632931,0.00013699,2]
[356851474,1743336633482,-3138.3632931,0.00013699,2]
[356851475,1743336633491,-151.0,0.00013699,2]
[356851476,1743336633501,-3138.3632931,0.00013699,2]
[356851477,1743336633510,-3138.3632931,0.00013699,2]
[356851478,1743336633520,-3138.3632931,0.00013699,2]
[356851479,1743336633530,-3138.3632931,0.00013699,2]
[356851480,1743336633539,-3138.3632931,0.00013699,2]
[356851481,1743336633549,-3138.3632931,0.00013699,2]
[356851482,1743336633558,-3138.3632931,0.00013699,2]
[356851483,1743336633568,-3138.3632931,0.00013699,2]
[356851484,1743336633577,-3138.3632931,0.00013699,2]
[356851485,1743336633586,-3138.3632931,0.00013699,2]
[356851486,1743336633595,-3138.3632931,0.00013699,2]
[356851487,1743336633604,-3138.3632931,0.00013699,2]
[356851488,1743336633613,-3138.3632931,0.00013699,2]
[356851489,1743336633623,-151.0,0.00013699,2]
[356851491,1743336633633,-3138.3632931,0.00013699,2]
[356851493,1743336633643,-3138.3632931,0.00013699,2]
[356851495,1743336633652,-3138.3632931,0.00013699,2]
[356851497,1743336633661,-3138.3632931,0.00013699,2]
[356851499,1743336633671,-3138.3632931,0.00013699,2]
[356851501,1743336633680,-3138.3632931,0.00013699,2]
[356851503,1743336633689,-3138.3632931,0.00013699,2]
[356851505,1743336633698,-3138.3632931,0.00013699,2]
[356851507,1743336633707,-151.0,0.00013699,2]
[356851509,1743336633716,-3138.3632931,0.00013699,2]
[356851510,1743336633726,-3138.3632931,0.00013699,2]
[356851512,1743336633739,-3138.3632931,0.00013699,2]
[356851514,1743336633748,-3138.3632931,0.00013699,2]
[356851516,1743336633757,-3138.3632931,0.00013699,2]
[356851518,1743336633767,-3138.3632931,0.00013699,2]
[356851520,1743336633776,-153.974654,0.00013699,2]
[356851522,1743336633785,-3086.98522531,0.00013699,2]
[356851524,1743336633794,-3086.98522531,0.00013699,2]
[356851526,1743336633804,-3086.98522531,0.00013699,2]
[356851528,1743336633815,-3086.98522531,0.00013699,2]
[356851530,1743336633824,-3086.98522531,0.00013699,2]
[356851532,1743336633833,-3086.98522531,0.00013699,2]
[356851534,1743336633843,-3086.98522531,0.00013699,2]
[356851536,1743336633853,-3086.98522531,0.00013699,2]
[356851538,1743336633862,-3086.98522531,0.00013699,2]
[356851540,1743336633871,-3086.98522531,0.00013699,2]
[356851542,1743336633881,-3086.98522531,0.00013699,2]
[356851544,1743336633890,-3086.98522531,0.00013699,2]
[356851546,1743336633900,-3086.98522531,0.00013699,2]
[356851548,1743336633909,-3086.98522531,0.00013699,2]
[356851550,1743336633918,-3086.98522531,0.00013699,2]
[356851552,1743336633927,-3086.98522531,0.00013699,2]
[356851554,1743336633936,-3086.98522531,0.00013699,2]
[356851555,1743336633945,-3086.98522531,0.00013699,2]
[356851556,1743336633955,-3086.98522531,0.00013699,2]
[356851558,1743336633964,-3086.98522531,0.00013699,2]
[356851560,1743336633973,-3086.98522531,0.00013699,2]
[356851561,1743336633983,-3086.98522531,0.00013699,2]
[356851562,1743336633992,-3086.98522531,0.00013699,2]
[356851564,1743336634001,-3086.98522531,0.00013699,2]
[356851566,1743336634010,-3086.98522531,0.00013699,2]
[356851568,1743336634020,-3086.98522531,0.00013699,2]
[356851570,1743336634029,-3086.98522531,0.00013699,2]
[356851572,1743336634038,-3086.98522531,0.00013699,2]
[356851574,1743336634047,-3086.98522531,0.00013699,2]
[356851576,1743336634056,-3086.98522531,0.00013699,2]
[356851578,1743336634066,-805.295979,0.00013699,2]
[356851580,1743336634075,-805.295979,0.00013699,2]
[356851582,1743336634085,-805.295979,0.00013699,2]
[356851584,1743336634094,-3086.98522529,0.00013699,2]
[356851586,1743336634103,-805.295979,0.00013699,2]
[356851588,1743336634112,-3086.98522529,0.00013699,2]
[356851590,1743336634122,-3086.98522529,0.00013699,2]
[356851592,1743336634131,-3086.98522529,0.00013699,2]
[356851594,1743336634140,-805.295979,0.00013699,2]
[356851596,1743336634150,-805.295979,0.00013699,2]
[356851598,1743336634160,-805.295979,0.00013699,2]
[356851600,1743336634170,-805.295979,0.00013699,2]
[356851602,1743336634179,-805.295979,0.00013699,2]
[356851604,1743336634189,-805.295979,0.00013699,2]
[356851606,1743336634198,-805.295979,0.00013699,2]
[356851608,1743336634207,-805.295979,0.00013699,2]
[356851610,1743336634217,-805.295979,0.00013699,2]
[356851612,1743336634226,-805.295979,0.00013699,2]
[356851614,1743336634236,-805.295979,0.00013699,2]
[356851616,1743336634245,-805.295979,0.00013699,2]
[356851618,1743336634255,-805.295979,0.00013699,2]
[356851620,1743336634264,-805.295979,0.00013699,2]
[356851622,1743336634273,-805.295979,0.00013699,2]
[356851624,1743336634283,-805.29597327,0.00013699,2]
[356851625,1743336634293,-153.30084,0.00013699,2]
[356851626,1743336634302,-590.768726,0.00013699,2]
[356851627,1743336634312,-590.768726,0.00013699,2]
[356851628,1743336634322,-590.768726,0.00013699,2]
[356851629,1743336634333,-590.768726,0.00013699,2]
[356851630,1743336634343,-590.768726,0.00013699,2]
[356851631,1743336634353,-590.768726,0.00013699,2]
[356851632,1743336634363,-590.768726,0.00013699,2]
[356851633,1743336634373,-590.768726,0.00013699,2]
[356851634,1743336634384,-590.768726,0.00013699,2]
[356851635,1743336634394,-590.768726,0.00013699,2]
[356851654,1743336634551,-590.768726,0.00013699,2]
[356851658,1743336634605,-590.768726,0.00013699,2]
[356851660,1743336634615,-590.768726,0.00013699,2]
[356851662,1743336634625,-590.768726,0.00013699,2]
[356851664,1743336634634,-590.768726,0.00013699,2]
[356851666,1743336634643,-590.768726,0.00013699,2]
[356851668,1743336634653,-590.768726,0.00013699,2]
[356851670,1743336634663,-590.768726,0.00013699,2]
[356851672,1743336634672,-590.768726,0.00013699,2]
[356851675,1743336634682,-590.76872614,0.00013699,2]
[356851677,1743336634691,-151.0,0.000138,2]
[356851678,1743336634703,-151.0,0.000144,2]
[356851681,1743336634714,-420.0,0.00014531,2]
[356851684,1743336634740,-224.5118012,0.00014592,2]
[356851686,1743336634750,-571.3637901,0.000149,2]
[356851688,1743336634760,-151.0,0.000149,2]
[356851690,1743336634770,-16000.0,0.00015,2]
[356851692,1743336634781,-458.62382205,0.0001525,2]
[356851694,1743336634791,-2415.7031723,0.00015277,3]
[356851696,1743336634802,-231.26145534,0.00015278,2]
[356851698,1743336634813,-709.53471238,0.000155,2]
[356851700,1743336634824,-2982.5,0.000155,2]
[356851703,1743336634834,-2982.5,0.000155,2]
[356851705,1743336634844,-2982.5,0.000155,2]
[356851707,1743336634854,-2982.5,0.000155,2]
[356851709,1743336634863,-151.0,0.000155,2]
[356851711,1743336634873,-587.0,0.00015932,2]
[356851713,1743336634883,-7642.04030607,0.00016,2]
[356851715,1743336634893,-151.0,0.00016,2]
[356851717,1743336634903,-189.56293509,0.00016014,2]
[356851719,1743336634913,-2138.53162065,0.0001603,2]
[356851721,1743336634922,-321.57162598,0.00016138,2]
[356851723,1743336634932,-303.49339214,0.00016175,2]
[356851725,1743336634942,-151.0,0.000166,2]
[356851727,1743336634952,-28854.75623322,0.00017,2]
[356851729,1743336634962,-151.0,0.000171,2]
[356851731,1743336634972,-823.0,0.00017467,2]
[356851733,1743336634982,-1048.35348349,0.000176,2]
[356851735,1743336634991,-151.0,0.000177,2]
[356851737,1743336635001,-150.194,0.00017922,2]
[356851739,1743336635010,-227.451,0.00017922,2]
[356851741,1743336635019,-150.78,0.00017922,2]
[356851743,1743336635029,-542.0,0.00017922,2]
[356851745,1743336635039,-1927.189,0.00017922,2]
[356851747,1743336635049,-2260.0,0.00017922,2]
[356851749,1743336635059,-121671.40581533,0.00018,2]
[356851751,1743336635068,-22564.35163996,0.00018,2]
[356851753,1743336635078,-21133.62568484,0.00018,4]
[356851755,1743336635088,-151.0,0.00018,2]
[356851758,1743336635099,-151.0,0.00018,2]
[356851760,1743336635109,-168.88,0.00018,2]
[356851762,1743336635119,-151.0,0.000182,2]
[356851764,1743336635128,-921.42707788,0.00018282,2]
[356851766,1743336635138,-151.0,0.000186,2]
[356851768,1743336635150,-151.0,0.000186,2]
[356851770,1743336635160,-159.49,0.000186,2]
[356851772,1743336635170,-174.87354216,0.00018679,2]
[356851774,1743336635180,-317.81679332,0.00018752,2]
[356851776,1743336635189,-1000.0,0.00018752,2]
[356851778,1743336635199,-500.0,0.00018752,2]
[356851780,1743336635209,-514.65068798,0.00018752,2]
[356851782,1743336635218,-1000.0,0.00018752,2]
[356851785,1743336635227,-1000.0,0.00018752,2]
[356851787,1743336635237,-1000.0,0.00018752,2]
[356851789,1743336635247,-1000.0,0.00018752,2]
[356851791,1743336635256,-1024.41135153,0.00018752,2]
[356851793,1743336635265,-1000.0,0.00018752,2]
[356851794,1743336635275,-1000.0,0.00018752,2]
[356851797,1743336635285,-1000.0,0.00018752,2]
[356851799,1743336635295,-305.17540106,0.00018752,2]
[356851801,1743336635305,-399.52985166,0.00018752,2]
[356851803,1743336635314,-466.92799511,0.00018752,2]
[356851805,1743336635324,-1000.0,0.00018752,2]
[356851807,1743336635333,-455.52156257,0.00018752,2]
[356851809,1743336635342,-1000.0,0.00018752,2]
[356851811,1743336635352,-758.35597972,0.00018752,2]
[356851813,1743336635362,-1000.0,0.00018752,2]
[356851815,1743336635372,-1000.0,0.00018752,2]
[356851817,1743336635382,-1000.0,0.00018752,2]
[356851819,1743336635391,-1003.96434473,0.00018752,2]
[356851821,1743336635401,-501.34821516,0.00018752,2]
[356851823,1743336635411,-597.59723927,0.00018752,2]
[356851825,1743336635421,-1000.0,0.00018752,2]
[356851827,1743336635430,-1000.0,0.00018752,2]
[356851829,1743336635439,-1000.0,0.00018752,2]
[356851831,1743336635449,-1035.28587288,0.00018752,2]
[356851833,1743336635459,-793.14232603,0.00018752,2]
[356851835,1743336635468,-302.87853461,0.00018752,2]
[356851837,1743336635478,-1000.0,0.00018752,2]
[356851839,1743336635488,-1000.0,0.00018752,2]
[356851841,1743336635498,-1000.0,0.00018752,2]
[356851843,1743336635508,-1000.0,0.00018752,2]
[356851845,1743336635518,-1000.0,0.00018752,2]
[356851847,1743336635528,-3012.39837974,0.00018942,2]
[356851849,1743336635538,-1152.0,0.00019151,2]
[356851851,1743336635547,-541.65508803,0.00019177,4]
[356851853,1743336635556,-160.0,0.00019177,2]
[356851855,1743336635566,-160.0,0.00019177,2]
[356851857,1743336635575,-500.0,0.00019178,2]
[356851859,1743336635585,-500.0,0.00019178,2]
[356851861,1743336635594,-500.0,0.00019178,2]
[356851863,1743336635606,-500.0,0.00019178,2]
[356851865,1743336635616,-518.57994697,0.00019178,2]
[356851868,1743336635625,-728.46,0.00019178,2]
[356851870,1743336635635,-502.15466939,0.00019178,2]
[356851871,1743336635644,-997.04,0.00019178,2]
[356851874,1743336635654,-500.0,0.00019178,2]
[356851876,1743336635664,-500.0,0.00019178,2]
[356851878,1743336635674,-502.41333154,0.00019178,2]
[356851880,1743336635683,-500.0,0.00019178,2]
[356851882,1743336635692,-504.23664426,0.00019178,2]
[356851884,1743336635701,-971.02,0.00019178,2]
[356851886,1743336635711,-500.0,0.00019178,2]
[356851888,1743336635720,-500.0,0.00019178,2]
[356851890,1743336635732,-500.0,0.00019178,2]
[356851892,1743336635741,-500.0,0.00019178,2]
[356851894,1743336635751,-500.57389712,0.00019178,2]
[356851896,1743336635761,-500.0,0.00019178,2]
[356851898,1743336635771,-586.47,0.00019178,2]
[356851900,1743336635781,-651.92,0.00019178,2]
[356851902,1743336635790,-500.0,0.00019178,2]
[356851904,1743336635799,-500.0,0.00019178,2]
[356851906,1743336635810,-500.0,0.00019178,2]
[356851908,1743336635819,-500.0,0.00019178,2]
[356851910,1743336635829,-500.0,0.00019178,2]
[356851912,1743336635839,-500.0,0.00019178,2]
[356851914,1743336635849,-500.0,0.00019178,2]
[356851916,1743336635858,-500.0,0.00019178,2]
[356851918,1743336635868,-500.0,0.00019178,2]
[356851919,1743336635877,-694.25,0.00019178,2]
[356851920,1743336635886,-500.0,0.00019178,2]
[356851921,1743336635895,-500.0,0.00019178,2]
[356851922,1743336635904,-909.26,0.00019178,2]
[356851923,1743336635913,-646.86899829,0.00019178,2]
[356851924,1743336635922,-500.0,0.00019178,2]
[356851925,1743336635931,-508.9,0.00019178,2]
[356851926,1743336635941,-656.04,0.00019178,2]
[356851927,1743336635950,-500.0,0.00019178,2]
[356851928,1743336635959,-500.0,0.00019178,2]
[356851930,1743336635968,-500.0,0.00019178,2]
[356851932,1743336635977,-500.0,0.00019178,2]
[356851934,1743336635989,-500.0,0.00019178,2]
[356851936,1743336635999,-500.0,0.00019178,2]
[356851938,1743336636008,-500.0,0.00019178,2]
[356851940,1743336636017,-500.0,0.00019178,2]
[356851942,1743336636027,-500.0,0.00019178,2]
[356851944,1743336636036,-500.0,0.00019178,2]
[356851946,1743336636045,-500.0,0.00019178,2]
[356851948,1743336636055,-500.0,0.00019178,2]
[356851950,1743336636064,-500.0,0.00019178,2]
[356851952,1743336636073,-770.23,0.00019178,2]
[356851954,1743336636082,-1426.76,0.00019178,2]
[356851956,1743336636091,-500.0,0.00019178,2]
[356851958,1743336636101,-739.19,0.00019178,2]
[356851960,1743336636110,-500.0,0.00019178,2]
[356851963,1743336636120,-500.0,0.00019178,2]
[356851965,1743336636129,-500.0,0.00019178,2]
[356851966,1743336636139,-500.0,0.00019178,2]
[356851968,1743336636149,-500.0,0.00019178,2]
[356851970,1743336636158,-500.0,0.00019178,2]
[356851972,1743336636167,-500.0,0.00019178,2]
[356851974,1743336636177,-500.0,0.00019178,2]
[356851976,1743336636186,-572.06,0.00019178,2]
[356851978,1743336636196,-500.0,0.00019178,2]
[356851980,1743336636205,-500.0,0.00019178,2]
[356851982,1743336636214,-500.0,0.00019178,2]
[356851984,1743336636223,-500.0,0.00019178,2]
[356851986,1743336636233,-820.71,0.00019178,2]
[356851988,1743336636242,-500.0,0.00019178,2]
[356851990,1743336636251,-792.51,0.00019178,2]
[356851992,1743336636261,-500.0,0.00019178,2]
[356851994,1743336636270,-500.0,0.00019178,2]
[356851996,1743336636279,-500.0,0.00019178,2]
[356851998,1743336636288,-500.0,0.00019178,2]
[356852000,1743336636298,-643.09,0.00019178,2]
[356852002,1743336636307,-500.0,0.00019178,2]
[356852004,1743336636317,-500.0,0.00019178,2]
[356852006,1743336636326,-500.0,0.00019178,2]
[356852008,1743336636336,-500.0,0.00019178,2]
[356852010,1743336636346,-500.0,0.00019178,2]
[356852012,1743336636356,-553.91782263,0.00019178,2]
[356852014,1743336636365,-500.0,0.00019178,2]
[356852016,1743336636374,-500.0,0.00019178,2]
[356852018,1743336636384,-1373.59,0.00019178,2]
[356852021,1743336636394,-500.0,0.00019178,2]
[356852023,1743336636404,-1089.35,0.00019178,2]
[356852024,1743336636413,-510.53,0.00019178,2]
[356852027,1743336636422,-500.0,0.00019178,2]
[356852028,1743336636431,-500.0,0.00019178,2]
[356852031,1743336636441,-786.5,0.00019178,2]
[356852033,1743336636450,-500.0,0.00019178,2]
[356852035,1743336636460,-500.0,0.00019178,2]
[356852037,1743336636470,-1995.85,0.00019178,2]
[356852039,1743336636479,-500.0,0.00019178,2]
[356852041,1743336636489,-200.0,0.00019178,2]
[356852043,1743336636499,-523.74,0.00019178,2]
[356852045,1743336636508,-1928.93,0.00019178,2]
[356852047,1743336636517,-500.0,0.00019178,2]
[356852049,1743336636527,-523.69,0.00019178,2]
[356852051,1743336636536,-500.0,0.00019178,2]
[356852053,1743336636545,-513.67,0.00019178,2]
[356852055,1743336636554,-1946.49,0.00019178,2]
[356852057,1743336636564,-512.33,0.00019178,2]
[356852059,1743336636573,-500.0,0.00019178,2]
[356852061,1743336636583,-1442.4,0.00019178,2]
[356852063,1743336636592,-500.0,0.00019178,2]
[356852065,1743336636601,-500.0,0.00019178,2]
[356852067,1743336636611,-514.51,0.00019178,2]
[356852069,1743336636620,-500.0,0.00019178,2]
[356852071,1743336636629,-500.0,0.00019178,2]
[356852073,1743336636639,-990.4,0.00019178,2]
[356852075,1743336636648,-942.64,0.00019178,2]
[356852077,1743336636657,-500.0,0.00019178,2]
[356852079,1743336636666,-500.0,0.00019178,2]
[356852081,1743336636680,-170.1286505,0.00019178,2]
[356852083,1743336636690,-500.0,0.00019178,2]
[356852085,1743336636699,-500.0,0.00019178,2]
[356852087,1743336636709,-990.42,0.00019178,2]
[356852089,1743336636719,-500.0,0.00019178,2]
[356852091,1743336636729,-500.0,0.00019178,2]
[356852093,1743336636740,-500.0,0.00019178,2]
[356852095,1743336636749,-500.0,0.00019178,2]
[356852098,1743336636759,-500.0,0.00019178,2]
[356852100,1743336636769,-500.0,0.00019178,2]
[356852102,1743336636778,-500.0,0.00019178,2]
[356852104,1743336636788,-2586.18,0.00019178,2]
[356852106,1743336636797,-1024.32,0.00019178,2]
[356852108,1743336636807,-500.0,0.00019178,2]
[356852110,1743336636817,-1087.6,0.00019178,2]
[356852112,1743336636826,-500.0,0.00019178,2]
[356852114,1743336636835,-516.69,0.00019178,2]
[356852116,1743336636845,-500.0,0.00019178,2]
[356852118,1743336636854,-500.0,0.00019178,2]
[356852120,1743336636863,-500.0,0.00019178,2]
[356852122,1743336636872,-864.19,0.00019178,2]
[356852124,1743336636881,-683.23,0.00019178,2]
[356852126,1743336636892,-381.43221195,0.00019178,2]
[356852128,1743336636902,-903.38,0.00019178,2]
[356852130,1743336636911,-500.0,0.00019178,2]
[356852132,1743336636921,-937.8,0.00019178,2]
[356852134,1743336636930,-500.0,0.00019178,2]
[356852136,1743336636940,-500.0,0.00019178,2]
[356852138,1743336636949,-1131.56,0.00019178,2]
[356852140,1743336636958,-798.99,0.00019178,2]
[356852142,1743336636968,-1481.39,0.00019178,2]
[356852144,1743336636977,-500.0,0.00019178,2]
[356852146,1743336636987,-500.0,0.00019178,2]
[356852148,1743336636997,-500.0,0.00019178,2]
[356852150,1743336637007,-500.0,0.00019178,2]
[356852152,1743336637016,-517.61,0.00019178,2]
[356852154,1743336637025,-500.0,0.00019178,2]
[356852156,1743336637035,-668.21,0.00019178,2]
[356852159,1743336637044,-687.74,0.00019178,2]
[356852161,1743336637054,-899.15,0.00019178,2]
[356852163,1743336637063,-707.97,0.00019178,2]
[356852165,1743336637072,-648.19355521,0.00019178,2]
[356852167,1743336637082,-500.0,0.00019178,2]
[356852169,1743336637091,-500.0,0.00019178,2]
[356852171,1743336637101,-1296.96,0.00019178,2]
[356852173,1743336637111,-500.0,0.00019178,2]
[356852175,1743336637120,-500.0,0.00019178,2]
[356852177,1743336637129,-572.03630704,0.00019178,2]
[356852179,1743336637139,-500.0,0.00019178,2]
[356852181,1743336637148,-1345.33,0.00019178,2]
[356852183,1743336637158,-500.0,0.00019178,2]
[356852185,1743336637167,-895.06,0.00019178,2]
[356852187,1743336637177,-500.0,0.00019178,2]
[356852190,1743336637186,-500.0,0.00019178,2]
[356852193,1743336637196,-2501.82,0.00019178,2]
[356852195,1743336637205,-914.71,0.00019178,2]
[356852197,1743336637215,-500.0,0.00019178,2]
[356852199,1743336637224,-500.0,0.00019178,2]
[356852201,1743336637233,-737.75,0.00019178,2]
[356852203,1743336637243,-500.0,0.00019178,2]
[356852205,1743336637252,-500.0,0.00019178,2]
[356852207,1743336637262,-4129.73,0.00019178,2]
[356852209,1743336637272,-500.0,0.00019178,2]
[356852210,1743336637281,-500.0,0.00019178,2]
[356852211,1743336637290,-776.32,0.00019178,2]
[356852212,1743336637299,-4902.77,0.00019178,2]
[356852213,1743336637308,-500.0,0.00019178,2]
[356852214,1743336637318,-500.0,0.00019178,2]
[356852215,1743336637327,-500.0,0.00019178,2]
[356852216,1743336637336,-500.0,0.00019178,2]
[356852217,1743336637346,-1672.32,0.00019178,2]
[356852218,1743336637356,-824.37,0.00019178,2]
[356852220,1743336637365,-643.85,0.00019178,2]
[356852222,1743336637375,-230.18297306,0.00019178,2]
[356852224,1743336637385,-500.0,0.00019178,2]
[356852226,1743336637395,-4151.45,0.00019178,2]
[356852228,1743336637404,-2985.11,0.00019178,2]
[356852230,1743336637414,-500.0,0.00019178,2]
[356852232,1743336637423,-500.0,0.00019178,2]
[356852234,1743336637433,-1413.31,0.00019178,2]
[356852236,1743336637442,-500.0,0.00019178,2]
[356852238,1743336637452,-500.0,0.00019178,2]
[356852240,1743336637462,-500.0,0.00019178,2]
[356852242,1743336637471,-500.0,0.00019178,2]
[356852244,1743336637481,-707.76,0.00019178,2]
[356852246,1743336637490,-500.0,0.00019178,2]
[356852248,1743336637501,-699.65,0.00019178,2]
[356852250,1743336637511,-500.0,0.00019178,2]
[356852252,1743336637520,-500.0,0.00019178,2]